[Event "Championnat d'Europe Rapide"]
[Date "2024.12.08"]
[White "Lagarde, Maxime"]
[Black "Kazakouski, Valery"]
[WhiteElo "2600"]
[BlackElo "2567"]
[Round "11.12"]
[Result "1-0"]
[TimeControl "900+10"]

1. c4 {[%emt 00:01:49] [%clk 00:15:18]} c6 {[%emt 00:00:07] [%clk 00:15:13]} 2.
Nf3 {[%emt 00:00:35] [%clk 00:14:53]} Nf6 {[%emt 00:00:03] [%clk 00:15:19]} 3.
b3 {[%emt 00:00:17] [%clk 00:14:46]} d5 {[%emt 00:00:04] [%clk 00:15:26]} 4. Bb2
{[%emt 00:00:01] [%clk 00:14:55]} Bg4 {[%emt 00:00:06] [%clk 00:15:30]} 5. g3
{[%emt 00:01:57] [%clk 00:13:08]} e6 {[%emt 00:00:18] [%clk 00:15:22]} 6. Bg2
{[%emt 00:00:10] [%clk 00:13:07]} Nbd7 {[%emt 00:00:02] [%clk 00:15:30]} 7. O-O
{[%emt 00:00:05] [%clk 00:13:12]} Be7 {[%emt 00:00:12] [%clk 00:15:28]} 8. d3
{[%emt 00:00:14] [%clk 00:13:09]} O-O {[%emt 00:00:06] [%clk 00:15:31]} 9. Nbd2
{[%emt 00:00:24] [%clk 00:12:54]} a5 {[%emt 00:00:03] [%clk 00:15:39]} 10. a3
{[%emt 00:00:09] [%clk 00:12:56]} Re8 {[%emt 00:00:26] [%clk 00:15:23]} 11. Qc2
{[%emt 00:00:05] [%clk 00:13:00]} Qb8 {[%emt 00:00:09] [%clk 00:15:24]} 12. h3
{[%emt 00:01:09] [%clk 00:12:01]} Bh5 {[%emt 00:00:06] [%clk 00:15:29]} 13. e4
{[%emt 00:00:06] [%clk 00:12:05]} dxe4 {[%emt 00:00:04] [%clk 00:15:35]} 14.
dxe4 {[%emt 00:00:03] [%clk 00:12:11]} Bxf3 {[%emt 00:00:14] [%clk 00:15:32]}
15. Nxf3 {[%emt 00:00:33] [%clk 00:11:47]} e5 {[%emt 00:00:02] [%clk 00:15:40]}
16. Rad1 {[%emt 00:01:07] [%clk 00:10:50]} Bc5 {[%emt 00:00:09] [%clk 00:15:41]}
17. h4 {[%emt 00:00:43] [%clk 00:10:17]} Qc7 {[%emt 00:01:29] [%clk 00:14:22]}
18. Bh3 {[%emt 00:00:02] [%clk 00:10:25]} Bf8 {[%emt 00:01:07] [%clk 00:13:25]}
19. Kg2 {[%emt 00:00:53] [%clk 00:09:42]} Nc5 {[%emt 00:00:37] [%clk 00:12:58]}
20. Rfe1 {[%emt 00:00:02] [%clk 00:09:51]} Qb6 {[%emt 00:00:21] [%clk 00:12:47]}
21. Re3 {[%emt 00:00:49] [%clk 00:09:10]} Qc7 {[%emt 00:00:06] [%clk 00:12:51]}
22. Bc3 {[%emt 00:01:28] [%clk 00:07:52]} b5 {[%emt 00:01:03] [%clk 00:11:57]}
23. cxb5 {[%emt 00:02:37] [%clk 00:05:26]} cxb5 {[%emt 00:00:02] [%clk
00:12:05]} 24. Qb2 {[%emt 00:00:01] [%clk 00:05:35]} Bd6 {[%emt 00:01:31] [%clk
00:10:44]} 25. Qe2 {[%emt 00:01:36] [%clk 00:04:09]} Qc6 {[%emt 00:00:18] [%clk
00:10:37]} 26. Nd2 {[%emt 00:00:38] [%clk 00:03:41]} Ne6 {[%emt 00:00:24] [%clk
00:10:22]} 27. Bxe6 {[%emt 00:01:36] [%clk 00:02:16]} Rxe6 {[%emt 00:00:03]
[%clk 00:10:28]} 28. b4 {[%emt 00:00:29] [%clk 00:01:58]} axb4 {[%emt 00:00:11]
[%clk 00:10:26]} 29. Bxb4 {[%emt 00:00:04] [%clk 00:02:05]} Bxb4 {[%emt
00:00:09] [%clk 00:10:27]} 30. axb4 {[%emt 00:00:01] [%clk 00:02:14]} Rd6 {[%emt
00:00:22] [%clk 00:10:15]} 31. Nf3 {[%emt 00:00:16] [%clk 00:02:06]} Rxd1 {[%emt
00:00:25] [%clk 00:10:01]} 32. Qxd1 {[%emt 00:00:01] [%clk 00:02:15]} Re8 {[%emt
00:00:08] [%clk 00:10:03]} 33. Qd3 {[%emt 00:00:26] [%clk 00:02:00]} h6 {[%emt
00:00:13] [%clk 00:10:00]} 34. Nd2 {[%emt 00:00:29] [%clk 00:01:41]} Ra8 {[%emt
00:00:14] [%clk 00:09:56]} 35. Nb3 {[%emt 00:00:28] [%clk 00:01:23]} Ra3 {[%emt
00:00:43] [%clk 00:09:24]} 36. Na5 {[%emt 00:01:02] [%clk 00:00:30]} Rxd3 {[%emt
00:00:24] [%clk 00:09:10]} 37. Nxc6 {[%emt 00:00:02] [%clk 00:00:38]} Rxe3
{[%emt 00:00:01] [%clk 00:09:18]} 38. fxe3 {[%emt 00:00:02] [%clk 00:00:47]}
Nxe4 {[%emt 00:00:07] [%clk 00:09:20]} 39. Nxe5 {[%emt 00:00:02] [%clk
00:00:55]} Kf8 {[%emt 00:00:36] [%clk 00:08:54]} 40. Kf3 {[%emt 00:00:06] [%clk
00:00:59]} Nd6 {[%emt 00:00:02] [%clk 00:09:02]} 41. e4 {[%emt 00:00:14] [%clk
00:00:56]} Ke7 {[%emt 00:00:07] [%clk 00:09:04]} 42. Nc6+ {[%emt 00:00:02] [%clk
00:01:04]} Kd7 {[%emt 00:00:37] [%clk 00:08:37]} 43. Nd4 {[%emt 00:00:02] [%clk
00:01:13]} f6 {[%emt 00:00:03] [%clk 00:08:44]} 44. h5 {[%emt 00:00:11] [%clk
00:01:11]} Nc4 {[%emt 00:03:37] [%clk 00:05:18]} 45. Nxb5 {[%emt 00:00:31] [%clk
00:00:50]} Ne5+ {[%clk 00:05:27]} 46. Kf4 {[%emt 00:00:01] [%clk 00:00:59]} Nc6
{[%clk 00:05:37]} 47. Kf5 {[%emt 00:00:23] [%clk 00:00:46]} Ke7 {[%emt 00:00:04]
[%clk 00:05:43]} 48. Nc7 {[%emt 00:00:30] [%clk 00:00:26]} Kf7 {[%emt 00:02:00]
[%clk 00:03:52]} 49. b5 {[%emt 00:00:14] [%clk 00:00:23]} Ne7+ {[%emt 00:00:08]
[%clk 00:03:54]} 50. Kf4 {[%emt 00:00:09] [%clk 00:00:24]} g5+ {[%emt 00:00:29]
[%clk 00:03:35]} 51. Ke3 {[%emt 00:00:01] [%clk 00:00:33]} Nc8 {[%emt 00:00:13]
[%clk 00:03:33]} 52. Kd4 {[%emt 00:00:15] [%clk 00:00:27]} Ke7 {[%emt 00:00:03]
[%clk 00:03:39]} 53. Nd5+ {[%emt 00:00:12] [%clk 00:00:26]} Ke6 {[%emt 00:00:02]
[%clk 00:03:47]} 54. b6 {[%emt 00:00:11] [%clk 00:00:25]} Nd6 {[%clk 00:03:56]}
55. Ne3 {[%emt 00:00:07] [%clk 00:00:28]} Kd7 {[%emt 00:01:30] [%clk 00:02:35]}
56. Nf5 {[%emt 00:00:01] [%clk 00:00:37]} Nf7 {[%emt 00:00:05] [%clk 00:02:41]}
57. Kc5 {[%emt 00:00:12] [%clk 00:00:35]} g4 {[%emt 00:00:03] [%clk 00:02:47]}
58. Kd5 {[%emt 00:00:01] [%clk 00:00:44]}

[Site "Europe Echecs"]

[Event "Championnat d'Europe Rapide"]
[Date "2024.12.08"]
[White "Peyrer, Konstantin"]
[Black "Navara, David"]
[WhiteElo "2440"]
[BlackElo "2665"]
[Round "11.13"]
[Result "1/2-1/2"]
[TimeControl "900+10"]

1. d4 {[%emt 00:00:04] [%clk 00:15:15]} Nf6 {[%emt 00:00:01] [%clk 00:15:19]} 2.
c4 {[%emt 00:00:02] [%clk 00:15:24]} e6 {[%emt 00:00:01] [%clk 00:15:28]} 3. Nc3
{[%emt 00:00:05] [%clk 00:15:29]} Bb4 {[%emt 00:00:01] [%clk 00:15:36]} 4. e3
{[%emt 00:00:03] [%clk 00:15:37]} O-O {[%emt 00:00:06] [%clk 00:15:40]} 5. a3
{[%emt 00:00:04] [%clk 00:15:43]} Bxc3+ {[%emt 00:00:03] [%clk 00:15:46]} 6.
bxc3 {[%emt 00:00:02] [%clk 00:15:51]} d6 {[%emt 00:00:03] [%clk 00:15:53]} 7.
f3 {[%emt 00:00:02] [%clk 00:15:59]} c5 {[%emt 00:00:46] [%clk 00:15:17]} 8. Bd3
{[%emt 00:00:03] [%clk 00:16:06]} Nc6 {[%emt 00:00:26] [%clk 00:15:02]} 9. Ne2
{[%emt 00:00:03] [%clk 00:16:12]} e5 {[%emt 00:00:30] [%clk 00:14:42]} 10. e4
{[%emt 00:00:49] [%clk 00:15:34]} b6 {[%emt 00:01:44] [%clk 00:13:08]} 11. d5
{[%emt 00:00:11] [%clk 00:15:32]} Na5 {[%emt 00:00:42] [%clk 00:12:36]} 12. Bg5
{[%emt 00:00:08] [%clk 00:15:34]} h6 {[%emt 00:00:25] [%clk 00:12:22]} 13. Bh4
{[%emt 00:00:03] [%clk 00:15:41]} Ba6 {[%emt 00:00:51] [%clk 00:11:40]} 14. Ng3
{[%emt 00:03:03] [%clk 00:12:48]} g5 {[%emt 00:00:16] [%clk 00:11:34]} 15. Bxg5
{[%emt 00:00:02] [%clk 00:12:57]} hxg5 {[%emt 00:00:02] [%clk 00:11:42]} 16. h4
{[%emt 00:00:02] [%clk 00:13:05]} Nh7 {[%emt 00:00:50] [%clk 00:11:01]} 17. hxg5
{[%emt 00:00:08] [%clk 00:13:07]} Qxg5 {[%emt 00:00:42] [%clk 00:10:29]} 18. Kf2
{[%emt 00:00:03] [%clk 00:13:15]} Bc8 {[%emt 00:04:43] [%clk 00:05:56]} 19. Rh5
{[%emt 00:00:42] [%clk 00:12:43]} Qg6 {[%emt 00:00:10] [%clk 00:05:56]} 20. Qh1
{[%emt 00:01:40] [%clk 00:11:12]} Nf6 {[%emt 00:00:02] [%clk 00:06:04]} 21. Rh6
{[%emt 00:00:18] [%clk 00:11:04]} Qg5 {[%emt 00:00:07] [%clk 00:06:06]} 22. Qh2
{[%emt 00:00:59] [%clk 00:10:15]} Kg7 {[%emt 00:03:19] [%clk 00:02:58]} 23. Rh1
{[%emt 00:00:19] [%clk 00:10:06]} Rg8 {[%emt 00:00:07] [%clk 00:03:01]} 24. Nh5+
{[%emt 00:01:15] [%clk 00:09:01]} Nxh5 {[%emt 00:00:06] [%clk 00:03:05]} 25.
Rxh5 {[%emt 00:00:02] [%clk 00:09:09]} Qd2+ {[%emt 00:00:16] [%clk 00:02:59]}
26. Be2 {[%emt 00:00:02] [%clk 00:09:18]} Bd7 {[%emt 00:01:04] [%clk 00:02:05]}
27. Qh4 {[%emt 00:00:20] [%clk 00:09:07]} Kf8 {[%emt 00:00:52] [%clk 00:01:23]}
28. Rh8 {[%emt 00:00:33] [%clk 00:08:44]} Rxh8 {[%emt 00:00:17] [%clk 00:01:16]}
29. Qxh8+ {[%emt 00:00:02] [%clk 00:08:52]} Ke7 {[%emt 00:00:01] [%clk
00:01:25]} 30. Qxa8 {[%emt 00:00:02] [%clk 00:09:00]} Nxc4 {[%emt 00:00:04]
[%clk 00:01:32]} 31. Rh8 {[%emt 00:00:44] [%clk 00:08:25]} Qe3+ {[%emt 00:00:02]
[%clk 00:01:40]} 32. Kg3 {[%emt 00:00:02] [%clk 00:08:34]} Qf4+ {[%emt 00:00:10]
[%clk 00:01:40]} 33. Kf2 {[%clk 00:08:42]} Qe3+ {[%emt 00:00:02] [%clk
00:01:48]} 34. Kg3 {[%emt 00:00:01] [%clk 00:08:51]} 1/2-1/2

[Site "Europe Echecs"]

[Event "Championnat d'Europe Rapide"]
[Date "2024.12.08"]
[White "Horvath, Dominik"]
[Black "Santos Latasa, Jaime"]
[WhiteElo "2542"]
[BlackElo "2628"]
[Round "11.14"]
[Result "1/2-1/2"]
[TimeControl "900+10"]

1. Nf3 {[%emt 00:00:05] [%clk 00:15:14]} e6 {[%emt 00:00:04] [%clk 00:15:17]} 2.
g3 {[%emt 00:00:11] [%clk 00:15:13]} b5 {[%emt 00:00:01] [%clk 00:15:26]} 3. Bg2
{[%emt 00:00:04] [%clk 00:15:19]} Bb7 {[%emt 00:00:02] [%clk 00:15:35]} 4. O-O
{[%emt 00:00:01] [%clk 00:15:26]} Nf6 {[%emt 00:00:02] [%clk 00:15:43]} 5. b3
{[%emt 00:00:02] [%clk 00:15:34]} b4 {[%emt 00:00:37] [%clk 00:15:16]} 6. Bb2
{[%emt 00:00:47] [%clk 00:14:59]} Be7 {[%emt 00:00:04] [%clk 00:15:21]} 7. d3
{[%emt 00:00:18] [%clk 00:14:51]} a5 {[%emt 00:01:00]} 8. c4 {[%clk 00:14:23]}
bxc3 {[%emt 00:00:36] [%clk 00:14:43]} 9. Nxc3 {[%emt 00:00:02] [%clk 00:14:30]}
O-O {[%emt 00:00:03] [%clk 00:14:51]} 10. Rc1 {[%emt 00:00:15] [%clk 00:14:25]}
Na6 {[%emt 00:02:05] [%clk 00:12:56]} 11. Na4 {[%emt 00:01:12] [%clk 00:13:23]}
Nb4 {[%emt 00:00:13] [%clk 00:12:53]} 12. a3 {[%emt 00:00:11] [%clk 00:13:21]}
Na6 {[%emt 00:00:04] [%clk 00:13:00]} 13. Qd2 {[%emt 00:00:25] [%clk 00:13:06]}
Bd5 {[%emt 00:00:33] [%clk 00:12:36]} 14. Ne5 {[%emt 00:00:18] [%clk 00:12:59]}
Bxg2 {[%emt 00:00:14] [%clk 00:12:32]} 15. Kxg2 {[%emt 00:00:01] [%clk
00:13:07]} Qb8 {[%emt 00:00:15] [%clk 00:12:28]} 16. Qc3 {[%emt 00:00:51] [%clk
00:12:26]} Qb5 {[%emt 00:00:41] [%clk 00:11:57]} 17. Nf3 {[%emt 00:01:52] [%clk
00:10:44]} Rfb8 {[%emt 00:01:03] [%clk 00:11:04]} 18. Nd2 {[%emt 00:00:03] [%clk
00:10:50]} h6 {[%emt 00:00:44] [%clk 00:10:31]} 19. e4 {[%emt 00:00:20] [%clk
00:10:39]} c5 {[%emt 00:00:51] [%clk 00:09:51]} 20. d4 {[%emt 00:01:24] [%clk
00:09:24]} cxd4 {[%emt 00:00:20] [%clk 00:09:42]} 21. Qxd4 {[%emt 00:00:01]
[%clk 00:09:32]} d5 {[%emt 00:00:10] [%clk 00:09:43]} 22. Nc3 {[%emt 00:00:47]
[%clk 00:08:55]} Qb7 {[%emt 00:00:07] [%clk 00:09:47]} 23. exd5 {[%emt 00:00:07]
[%clk 00:08:58]} Nc7 {[%emt 00:00:20] [%clk 00:09:37]} 24. Kg1 {[%emt 00:00:38]
[%clk 00:08:29]} Ncxd5 {[%emt 00:00:08] [%clk 00:09:40]} 25. Nxd5 {[%emt
00:00:02] [%clk 00:08:37]} Qxd5 {[%emt 00:00:02] [%clk 00:09:47]} 26. Qxd5
{[%emt 00:00:35] [%clk 00:08:12]} Nxd5 {[%emt 00:00:02] [%clk 00:09:55]} 27. Rc6
{[%emt 00:00:50] [%clk 00:07:32]} Bg5 {[%emt 00:00:11] [%clk 00:09:53]} 28. f4
{[%emt 00:00:05] [%clk 00:07:37]} Bd8 {[%emt 00:00:02] [%clk 00:10:02]} 29. Bd4
{[%emt 00:01:26] [%clk 00:06:21]} Be7 {[%emt 00:00:30] [%clk 00:09:41]} 30. Bb2
{[%emt 00:00:07] [%clk 00:06:24]} Bd8 {[%emt 00:01:17] [%clk 00:08:35]} 31. Bd4
{[%emt 00:00:01] [%clk 00:06:33]} Ne7 {[%emt 00:00:12] [%clk 00:08:33]} 32. Rc4
{[%emt 00:01:03] [%clk 00:05:39]} Nf5 {[%emt 00:00:09] [%clk 00:08:34]} 33. Bc5
{[%emt 00:00:47] [%clk 00:05:03]} h5 {[%emt 00:00:29] [%clk 00:08:15]} 34. Rfc1
{[%emt 00:00:13] [%clk 00:05:00]} Bf6 {[%emt 00:00:05] [%clk 00:08:20]} 35. R1c2
{[%emt 00:00:22] [%clk 00:04:47]} Rd8 {[%emt 00:01:05] [%clk 00:07:26]} 36. b4
{[%emt 00:00:21] [%clk 00:04:36]} axb4 {[%emt 00:00:43] [%clk 00:06:53]} 37.
axb4 {[%clk 00:04:45]} Rab8 {[%emt 00:00:35] [%clk 00:06:28]} 38. Ne4 {[%emt
00:00:24] [%clk 00:04:30]} Kh7 {[%emt 00:01:17] [%clk 00:05:22]} 1/2-1/2

[Site "Europe Echecs"]

[Event "Championnat d'Europe Rapide"]
[Date "2024.12.08"]
[White "Bulmaga, Irina"]
[Black "Sarana, Alexey"]
[WhiteElo "2386"]
[BlackElo "2674"]
[Round "11.15"]
[Result "0-1"]
[TimeControl "900+10"]

1. e4 {[%emt 00:21:23] [%clk 00:15:17]} c5 {[%emt 00:00:02] [%clk 00:15:19]} 2.
c3 {[%emt 00:00:02] [%clk 00:15:25]} d5 {[%emt 00:00:06] [%clk 00:15:24]} 3.
exd5 {[%emt 00:00:03] [%clk 00:15:32]} Qxd5 {[%emt 00:00:01] [%clk 00:15:32]} 4.
d4 {[%emt 00:00:03] [%clk 00:15:39]} Nf6 {[%emt 00:00:01] [%clk 00:15:41]} 5.
Nf3 {[%emt 00:00:02] [%clk 00:15:47]} e6 {[%emt 00:00:03] [%clk 00:15:49]} 6.
Na3 {[%emt 00:00:37] [%clk 00:15:20]} Nc6 {[%emt 00:00:15] [%clk 00:15:43]} 7.
Be3 {[%emt 00:00:19] [%clk 00:15:11]} a6 {[%emt 00:00:02] [%clk 00:15:52]} 8.
Nc4 {[%emt 00:01:44] [%clk 00:13:36]} cxd4 {[%emt 00:00:13] [%clk 00:15:49]} 9.
Nxd4 {[%emt 00:01:12] [%clk 00:12:35]} Bc5 {[%emt 00:00:03] [%clk 00:15:56]} 10.
Nxc6 {[%emt 00:00:36] [%clk 00:12:09]} Qxc6 {[%emt 00:00:03] [%clk 00:16:03]}
11. Bxc5 {[%emt 00:01:05] [%clk 00:11:13]} Qxc5 {[%emt 00:00:03] [%clk
00:16:11]} 12. Qd6 {[%emt 00:00:46] [%clk 00:10:37]} Qxd6 {[%emt 00:00:02] [%clk
00:16:19]} 13. Nxd6+ {[%emt 00:00:02] [%clk 00:10:45]} Ke7 {[%emt 00:00:01]
[%clk 00:16:27]} 14. Nxc8+ {[%emt 00:00:18] [%clk 00:10:37]} Raxc8 {[%emt
00:00:02] [%clk 00:16:36]} 15. Be2 {[%emt 00:00:03] [%clk 00:10:43]} Rhd8 {[%emt
00:01:07] [%clk 00:15:39]} 16. Rd1 {[%emt 00:00:21] [%clk 00:10:32]} Ne4 {[%emt
00:00:45] [%clk 00:15:05]} 17. Rxd8 {[%emt 00:01:16] [%clk 00:09:26]} Rxd8
{[%emt 00:00:02] [%clk 00:15:13]} 18. Bf3 {[%emt 00:00:56] [%clk 00:08:39]} Nc5
{[%emt 00:00:05] [%clk 00:15:18]} 19. Ke2 {[%emt 00:01:01] [%clk 00:07:48]} b6
{[%emt 00:01:05] [%clk 00:14:24]} 20. Rd1 {[%emt 00:00:57] [%clk 00:07:00]} Na4
{[%emt 00:00:30] [%clk 00:14:04]} 21. Bb7 {[%emt 00:01:09] [%clk 00:06:02]} Nxb2
{[%emt 00:04:54] [%clk 00:09:19]} 22. Rxd8 {[%emt 00:00:18] [%clk 00:05:54]}
Kxd8 {[%emt 00:00:02] [%clk 00:09:27]} 23. Bxa6 {[%emt 00:00:02] [%clk
00:06:02]} Na4 {[%emt 00:00:03] [%clk 00:09:35]} 24. Kd2 {[%emt 00:00:33] [%clk
00:05:38]} Ke7 {[%emt 00:00:09] [%clk 00:09:36]} 25. Bd3 {[%emt 00:00:39] [%clk
00:05:09]} g6 {[%emt 00:00:19] [%clk 00:09:28]} 26. Bb5 {[%emt 00:00:44] [%clk
00:04:35]} Nc5 {[%emt 00:00:04] [%clk 00:09:34]} 27. Ke3 {[%emt 00:00:07] [%clk
00:04:38]} Kd6 {[%emt 00:00:19] [%clk 00:09:24]} 28. Kd4 {[%emt 00:00:23] [%clk
00:04:25]} g5 {[%emt 00:01:07] [%clk 00:08:27]} 29. Be2 {[%emt 00:01:14] [%clk
00:03:21]} f5 {[%emt 00:00:58] [%clk 00:07:39]} 30. Kc4 {[%emt 00:00:25] [%clk
00:03:06]} g4 {[%emt 00:00:43] [%clk 00:07:06]} 31. f3 {[%emt 00:00:46] [%clk
00:02:30]} h5 {[%emt 00:02:13] [%clk 00:05:03]} 32. Kb5 {[%emt 00:00:04] [%clk
00:02:37]} Kc7 {[%emt 00:00:31] [%clk 00:04:41]} 33. a4 {[%emt 00:00:04] [%clk
00:02:43]} Nb7 {[%emt 00:00:41] [%clk 00:04:10]} 34. Kc4 {[%emt 00:00:30] [%clk
00:02:23]} Nd6+ {[%emt 00:00:57] [%clk 00:03:23]} 35. Kd4 {[%emt 00:00:01] [%clk
00:02:32]} Nf7 {[%emt 00:00:01] [%clk 00:03:32]} 36. fxg4 {[%emt 00:00:24] [%clk
00:02:19]} hxg4 {[%emt 00:00:01] [%clk 00:03:41]} 37. h4 {[%emt 00:00:35] [%clk
00:01:53]} Kd6 {[%emt 00:01:23] [%clk 00:02:28]} 38. h5 {[%emt 00:00:01] [%clk
00:02:02]} e5+ {[%emt 00:00:14] [%clk 00:02:25]} 39. Kc4 {[%emt 00:00:03] [%clk
00:02:08]} g3 {[%emt 00:00:17] [%clk 00:02:19]} 40. Kb5 {[%emt 00:00:10] [%clk
00:02:08]} Kc7 {[%emt 00:00:36] [%clk 00:01:53]} 41. Kc4 {[%emt 00:00:03] [%clk
00:02:15]} Kd6 {[%emt 00:00:29] [%clk 00:01:34]} 42. Kb5 {[%emt 00:00:02] [%clk
00:02:23]} e4 {[%emt 00:00:29] [%clk 00:01:15]} 43. Bc4 {[%emt 00:00:55] [%clk
00:01:38]} Ng5 {[%emt 00:01:08] [%clk 00:00:17]} 44. Kxb6 {[%emt 00:00:11] [%clk
00:01:36]} f4 {[%emt 00:00:01] [%clk 00:00:26]} 45. a5 {[%emt 00:00:09] [%clk
00:01:38]} f3 {[%emt 00:00:01] [%clk 00:00:35]} 46. Bf1 {[%emt 00:01:18] [%clk
00:00:30]} e3 {[%emt 00:00:01] [%clk 00:00:43]} 47. a6 {[%emt 00:00:11] [%clk
00:00:30]} e2 {[%emt 00:00:02] [%clk 00:00:51]} 48. Bxe2 {[%emt 00:00:07] [%clk
00:00:33]} fxg2 {[%emt 00:00:05] [%clk 00:00:55]} 49. a7 {[%emt 00:00:10] [%clk
00:00:33]} g1=Q+ {[%emt 00:00:02] [%clk 00:01:03]} 50. Kb7 {[%emt 00:00:06]
[%clk 00:00:37]} Qg2+ {[%emt 00:00:02] [%clk 00:01:11]} 51. Kb8 {[%emt 00:00:08]
[%clk 00:00:40]} Qxe2 {[%emt 00:00:02] [%clk 00:01:18]} 0-1

[Site "Europe Echecs"]

[Event "Championnat d'Europe Rapide"]
[Date "2024.12.08"]
[White "Kuzubov, Yuriy"]
[Black "Subelj, Jan"]
[WhiteElo "2595"]
[BlackElo "2526"]
[Round "11.16"]
[Result "1-0"]
[TimeControl "900+10"]

1. d4 {[%emt 00:21:28] [%clk 00:15:18]} Nf6 {[%emt 00:00:02] [%clk 00:15:18]} 2.
Nf3 {[%emt 00:00:01] [%clk 00:15:26]} c6 {[%emt 00:00:02] [%clk 00:15:26]} 3. c4
{[%emt 00:00:09] [%clk 00:15:28]} d5 {[%emt 00:00:01] [%clk 00:15:35]} 4. Nc3
{[%emt 00:00:03] [%clk 00:15:35]} dxc4 {[%emt 00:00:06] [%clk 00:15:38]} 5. a4
{[%emt 00:00:02] [%clk 00:15:44]} Bf5 {[%emt 00:00:01] [%clk 00:15:46]} 6. Nh4
{[%emt 00:00:05] [%clk 00:15:50]} Bc8 {[%emt 00:01:45] [%clk 00:14:11]} 7. e3
{[%emt 00:00:07] [%clk 00:15:52]} a5 {[%emt 00:00:14] [%clk 00:14:08]} 8. Bxc4
{[%emt 00:00:06] [%clk 00:15:56]} Na6 {[%emt 00:00:02] [%clk 00:14:16]} 9. O-O
{[%emt 00:00:26] [%clk 00:15:40]} Nb4 {[%emt 00:00:06] [%clk 00:14:20]} 10. e4
{[%emt 00:00:26] [%clk 00:15:24]} e6 {[%emt 00:00:39] [%clk 00:13:51]} 11. Nf3
{[%emt 00:00:34] [%clk 00:15:00]} Be7 {[%emt 00:00:01] [%clk 00:13:59]} 12. Bg5
{[%emt 00:01:10] [%clk 00:13:59]} b6 {[%emt 00:00:34] [%clk 00:13:36]} 13. Qe2
{[%emt 00:00:33] [%clk 00:13:36]} h6 {[%emt 00:00:35] [%clk 00:13:12]} 14. Bf4
{[%emt 00:01:02] [%clk 00:12:44]} Ba6 {[%emt 00:00:11] [%clk 00:13:11]} 15. b3
{[%emt 00:00:56] [%clk 00:11:58]} O-O {[%emt 00:00:08] [%clk 00:13:13]} 16. Rfd1
{[%emt 00:00:38] [%clk 00:11:30]} Qc8 {[%emt 00:00:17] [%clk 00:13:06]} 17. Ne5
{[%emt 00:01:11] [%clk 00:10:29]} Qb7 {[%emt 00:00:18] [%clk 00:12:58]} 18. f3
{[%emt 00:01:11] [%clk 00:09:27]} Rfd8 {[%emt 00:00:46] [%clk 00:12:23]} 19.
Rac1 {[%emt 00:01:12] [%clk 00:08:25]} Nd7 {[%emt 00:00:39] [%clk 00:11:54]} 20.
Bxa6 {[%emt 00:01:33] [%clk 00:07:02]} Rxa6 {[%emt 00:01:21] [%clk 00:10:43]}
21. Nc4 {[%emt 00:00:13] [%clk 00:06:59]} Nf8 {[%emt 00:00:12] [%clk 00:10:41]}
22. Be3 {[%emt 00:01:13] [%clk 00:05:55]} Raa8 {[%emt 00:01:04] [%clk 00:09:48]}
23. g3 {[%emt 00:00:24] [%clk 00:05:41]} Bf6 {[%emt 00:02:36] [%clk 00:07:22]}
24. Kg2 {[%emt 00:00:16] [%clk 00:05:35]} Rac8 {[%emt 00:00:29] [%clk 00:07:03]}
25. h4 {[%emt 00:01:12] [%clk 00:04:33]} h5 {[%emt 00:00:33] [%clk 00:06:40]}
26. Bf4 {[%emt 00:01:01] [%clk 00:03:42]} Bxd4 {[%emt 00:01:24] [%clk 00:05:26]}
27. Nd6 {[%emt 00:00:18] [%clk 00:03:34]} Rxd6 {[%emt 00:00:02] [%clk 00:05:34]}
28. Bxd6 {[%emt 00:00:01] [%clk 00:03:43]} e5 {[%emt 00:00:01] [%clk 00:05:43]}
29. f4 {[%emt 00:00:39] [%clk 00:03:14]} g6 {[%emt 00:00:05] [%clk 00:05:48]}
30. fxe5 {[%emt 00:00:43] [%clk 00:02:41]} Ne6 {[%emt 00:00:02] [%clk 00:05:56]}
31. Rf1 {[%emt 00:00:54] [%clk 00:01:56]} Re8 {[%emt 00:00:12] [%clk 00:05:54]}
32. Qc4 {[%emt 00:00:28] [%clk 00:01:39]} c5 {[%emt 00:01:20] [%clk 00:04:45]}
33. Nd5 {[%emt 00:00:26] [%clk 00:01:22]} Kg7 {[%emt 00:00:01] [%clk 00:04:54]}
34. Rf3 {[%emt 00:00:24] [%clk 00:01:08]} Nc6 {[%emt 00:00:25] [%clk 00:04:39]}
35. Nc7 {[%emt 00:00:17] [%clk 00:01:00]} Re7 {[%emt 00:00:35] [%clk 00:04:15]}
36. Bxe7 {[%emt 00:00:18] [%clk 00:00:52]} Qxc7 {[%emt 00:00:01] [%clk
00:04:23]} 37. Bd6 {[%emt 00:00:12] [%clk 00:00:50]} Qd7 {[%emt 00:00:02] [%clk
00:04:32]} 38. Rcf1 {[%emt 00:00:12] [%clk 00:00:48]} Ned8 {[%emt 00:00:03]
[%clk 00:04:40]} 39. Qd5 {[%emt 00:00:12] [%clk 00:00:46]} Kg8 {[%emt 00:00:22]
[%clk 00:04:27]} 40. Rxf7 {[%emt 00:00:22] [%clk 00:00:34]} Nxf7 {[%emt
00:00:44] [%clk 00:03:53]} 41. e6 {[%emt 00:00:01] [%clk 00:00:42]} Qxd6 {[%emt
00:00:18] [%clk 00:03:46]} 42. exf7+ {[%emt 00:00:02] [%clk 00:00:51]} 1-0

[Site "Europe Echecs"]